[Event "3rd Sunway Formentera-A 2024"]
[Site "Formentera"]
[Date "2024.04.16"]
[Round "7.7"]
[White "Prado, Alexandra"]
[Black "Mazet, Julien"]
[Result "0-1"]
[ECO "C41"]
[WhiteElo "1839"]
[BlackElo "2031"]
[Annotator "TA"]
[PlyCount "140"]
[EventDate "2024.04.03"]
[EventType "swiss"]
[EventCountry "ESP"]
[SourceTitle "playchess.com"]
[Source "ChessBase"]
[SourceQuality "1"]
[TimeControl "40/5400+30:1800+30"]

{[%evp 9,140,21,48,37,36,27,28,17,26,0,47,44,45,19,67,65,64,77,77,66,75,42,34,29,87,91,79,43,114,100,138,30,31,20,26,-10,0,-15,-14,-38,-41,-55,52,39,49,-94,-67,-57,-66,-60,-58,-118,-49,-47,-59,-118,-129,-143,-156,-151,-155,-227,-212,-202,-202,-223,-195,-216,-216,-254,-251,-265,-264,-467,-467,-838,-681,-656,-607,-814,-814,-767,-731,-1154,-1127,-1101,-1101,-1101,-1080,-1063,-1061,-1068,-1089,-835,-676,-1297,-1218,-4306,-2596,-2282,-1249,-12789,-5081,-29956,-29960,-12838,-12814,-29965,-6429,-29937,-29939,-29975,-29977,-29979,-29980,-29978,-29979,-29982,-29981,-29983,-29984,-29984,-29984,-29984,-29985,-29987,-29988,-29988,-29989,-29989,-29990,-29990,-29991]} 1. e4 {[%emt 0:00:29]} d6 {[%emt 0:00:12]} 2. d4 {[%emt 0:00:21]} Nf6 {[%emt 0:00:11]} 3. Nc3 {[%emt 0:00:12]} e5 {[%emt 0:00:11]} 4. Nf3 {[%emt 0:00:35]} Nbd7 {[%emt 0:00:11]} 5. Rg1 {[%emt 0:01:25]} g6 {[%emt 0:00:54]} 6. g4 {[%emt 0:00:24][%cal Bg2g4,Bg4g5][%mdl 32]} Bg7 {[%emt 0:00:16]} 7. g5 {[%emt 0:01:58]} Nh5 {[%emt 0:00:26]} 8. Be3 {[%emt 0:00:42] White has an edge.} O-O {[%emt 0:00:37]} 9. Qd2 {[%emt 0:02:12]} c6 {[%emt 0:03:34]} (9... f5 $11 {is superior.} 10. exf5 gxf5 (10... Rxf5 11. dxe5 Qf8 12. Bc4+ Kh8 13. e6 $11)) 10. O-O-O $14 {[%emt 0:00:52]} Qc7 {[%emt 0:03:16]} 11. h4 {[%emt 0:08:38]} Nb6 {[%emt 0:02:28]} (11... b5 $1 $11) 12. dxe5 {[%emt 0:10:30]} dxe5 {[%emt 0:00:19]} 13. Bc5 $36 {[%emt 0:05:52][%mdl 2048] White is really pushing.} Re8 {[%emt 0:02:23]} 14. Bd6 {[%emt 0:01:45]} Qd7 {[%emt 0:10:36]} 15. b3 {[%emt 0:02:41]} Qe6 {[%emt 0:02:37] Hoping for ...Rd8.} 16. Bc5 {[%emt 0:03:42]} Bf8 {[%emt 0:05:32]} (16... Nd7 $1 $11 {remains equal.} 17. Bc4 Qh3) 17. Bxf8 $16 {[%emt 0:02:29]} Kxf8 {[%emt 0:06:22]} 18. a4 {[%emt 0:00:41]} a5 {[%emt 0:01:25]} (18... Qe7 $14) 19. Qe3 {[%emt 0:01:51]} Nd7 {[%emt 0:00:57]} 20. Bc4 {[%emt 0:19:10]} ({White should play} 20. Nd2 $1 $16) 20... Qe7 $11 {[%emt 0:00:30]} 21. Kb2 {[%emt 0:00:31]} Nc5 {[%emt 0:04:30]} 22. Qd2 {[%emt 0:13:46]} Bh3 {[%emt 0:05:50]} (22... Bd7 {simplifies} 23. Qd6 Kg7 24. Qxe7 Rxe7 25. Nd2 Nf4) 23. Qd6 {[%emt 0:01:26]} Kg7 {[%emt 0:08:49]} 24. Nh2 {[%emt 0:03:57]} Nf4 {[%emt 0:02:44]} 25. f3 {[%emt 0:01:01]} h5 {[%emt 0:05:35]} (25... Qxd6 $15 26. Rxd6 Rad8) 26. gxh6+ $14 {[%emt 0:00:50]} Kxh6 {[%emt 0:00:11]} 27. Qd2 {[%emt 0:08:11]} (27. Bxf7 $1 $14 {keeps the upper hand.} Qxd6 28. Rxd6) 27... Rad8 {[%emt 0:02:48]} (27... Qxh4 28. Bxf7 Re7 29. Bxg6 $18 (29. Rxg6+ Kh7 $11)) 28. Qe3 {[%emt 0:00:20][%cal Oc4f7]} Kg7 {[%emt 0:00:50]} 29. Rxd8 {[%emt 0:02:05]} Rxd8 {[%emt 0:00:11]} 30. Ne2 {[%emt 0:02:43] Inhibits Rd4.} ({Better is} 30. Ng4 $15) 30... Nxe2 {[%emt 0:01:07]} (30... Ng2 $6 31. Qc3 $11) (30... b5 $1 $17 {[%cal Rb5c4]} 31. axb5 (31. Nxf4 bxc4 32. Nxh3 cxb3 $17) 31... Nxe2 (31... cxb5 32. Nxf4 bxc4 33. Nd5 $17) 32. Bxe2 a4) 31. Bxe2 $15 {[%emt 0:00:17]} Rh8 {[%emt 0:01:43]} 32. h5 {[%emt 0:02:53] White is now going downhill.} Rxh5 $17 {[%emt 0:01:22]} 33. Qc3 {[%emt 0:00:52]} b6 {[%emt 0:05:47]} 34. f4 {[%emt 0:01:07] [#]} Rh4 {[%emt 0:00:23]} (34... Nxe4 35. Qxc6 Bd7 36. Qxe4 $17) 35. f5 {[%emt 0:00:46] [#]} (35. Nf3 $17 Rxf4 (35... Nxe4 $2 36. Qxc6 Rxf4 37. Qxb6 $19) 36. Nxe5) 35... Bxf5 $1 {[%emt 0:02:24][%mdl 512]} 36. exf5 {[%emt 0:00:31]} Rxh2 {[%emt 0:00:21]} 37. Bc4 {[%emt 0:00:27]} Qf6 {[%emt 0:03:04]} 38. fxg6 {[%emt 0:00:23] White is weak on the dark squares} fxg6 {[%emt 0:00:13]} 39. Rf1 {[%emt 0:00:29] [#]} Rf2 {[%emt 0:00:17]} 40. Rxf2 {[%emt 0:00:00]} Qxf2 $19 {[%emt 0:00:00][%mdl 4096] Endgame. KQB-KQN} 41. Qh3 $2 {[%emt 0:06:05]} (41. Qxe5+ Qf6 42. Qxf6+ Kxf6 43. Bf1) 41... Qd4+ {[%emt 0:03:14]} 42. c3 {[%emt 0:14:33] [#]} (42. Qc3 $142) 42... Nxa4+ $1 {[%emt 0:01:43][%mdl 512]} 43. bxa4 {[%emt 0:00:42]} Qxc4 {[%emt 0:00:12] KQ-KQ} 44. Qd7+ {[%emt 0:00:32]} Kf6 {[%emt 0:01:58]} 45. Qd8+ {[%emt 0:02:02]} Kf5 {[%emt 0:01:06]} 46. Qxb6 {[%emt 0:04:00]} Qxa4 {[%emt 0:00:54]} 47. Qf2+ {[%emt 0:00:42]} Ke6 {[%emt 0:00:14]} 48. Qg2 {[%emt 0:00:46]} Kf6 {[%emt 0:04:36]} ({Less strong is} 48... Qb5+ 49. Kc1 $19) 49. Qf3+ {[%emt 0:01:32]} Kg7 {[%emt 0:00:33]} 50. Qh3 {[%emt 0:01:09]} Qb5+ {[%emt 0:00:40]} 51. Kc2 {[%emt 0:00:32]} Qd5 {[%emt 0:01:54] And now ...e4 would win.} 52. Qh4 {[%emt 0:01:58]} Qe6 {[%emt 0:02:30] Prevents Qe7+} 53. Kb2 {[%emt 0:01:37]} e4 {[%emt 0:02:41] Strongly threatening ...e3.} 54. Qd8 {[%emt 0:00:28]} a4 {[%emt 0:03:27]} 55. Qd4+ {[%emt 0:01:15]} Kh7 {[%emt 0:01:38]} 56. Qxa4 {[%emt 0:00:28]} g5 {[%emt 0:00:23]} 57. Qa7+ {[%emt 0:00:50]} Kg6 {[%emt 0:00:14] ( -> ...e3)} 58. Qd4 {[%emt 0:00:32]} Qd5 {[%emt 0:02:02]} (58... e3 $142 59. Qd3+ Kh5 60. Qe2+ g4 61. c4 Kg5 (61... Qe5+ $2 62. Kc2 $19) 62. c5 Qe5+ 63. Kb3 g3 (63... Qxc5 $2 64. Qe1 $19) 64. Kc2 Qe4+ (64... Qxc5+ {is a self mate.} 65. Kd3 Qb5+ 66. Kxe3 Qxe2+ 67. Kxe2 Kf4 68. Ke1 Kf3 69. Kd2 g2 70. Kd3 g1=Q 71. Kc3 Qc5+ 72. Kb2 Qb4+ 73. Kc1 Ke2 74. Kc2 c5 75. Kc1 Kd3 76. Kd1 Qd2#) 65. Kc1 Qh1+ 66. Kc2 Qh2 (66... Qe4+ 67. Kb2 g2 68. Qe1 e2 69. Qg3+ Kf6 70. Qf2+ Ke6 71. Qf8 e1=Q 72. Qg8+ Ke5 73. Qh8+ Kf4 74. Qf6+ Kg3 75. Qg7+ Kf2 76. Qf7+ Kg1 77. Qb3 Qd4+ 78. Qc3 Qexc3+ 79. Kb1 Qb2#) 67. Kd3 Qxe2+ 68. Kxe2 Kf4 (68... g2 69. Kxe3 g1=Q+ 70. Ke4 Qxc5 71. Kd3 Kf4 72. Kd2 Ke4 73. Ke2 Qc2+ 74. Ke1 Ke3 75. Kf1 Qf2#) 69. Kf1 Kf3 70. Ke1 g2 71. Kd1 g1=Q+ (71... g1=R+ 72. Kc2 e2 73. Kc3 e1=Q+ 74. Kc4 Qe3 75. Kb4 Ra1 76. Kc4 Ra4#) 72. Kc2 Qa1 (72... e2 73. Kb2 e1=Q 74. Kb3 Qee3+ 75. Kb4 Qb1+ 76. Kc4 Qbe4#) 73. Kb3 e2 74. Kb4 e1=Q+ 75. Kc4 Qec3#) 59. Qh8 {[%emt 0:00:21]} g4 {[%emt 0:02:25] Black mates.} 60. Qe8+ {[%emt 0:00:23]} Kg5 {[%emt 0:00:25]} 61. Qe7+ {[%emt 0:00:22]} Kf4 {[%emt 0:00:29]} 62. Qf6+ {[%emt 0:00:52]} Kg3 {[%emt 0:00:19]} 63. Qh6 {[%emt 0:00:39]} Qb5+ {[%emt 0:00:41]} 64. Kc1 {[%emt 0:00:30]} Qf1+ {[%emt 0:00:30]} 65. Kb2 {[%emt 0:00:07]} Qf2+ {[%emt 0:01:01]} 66. Kb3 {[%emt 0:00:22]} e3 {[%emt 0:01:28]} 67. Qxc6 {[%emt 0:00:53]} e2 {[%emt 0:00:53]} 68. Qd6+ {[%emt 0:00:40]} Kg2 {[%emt 0:00:35]} 69. Qd5+ {[%emt 0:00:29]} Kg1 {[%emt 0:00:20]} 70. Qe4 {[%emt 0:00:21]} g3 {[%emt 0:25:19] Weighted Error Value: White=0.47/Black=0.20 (precise) .  Mistake:       	White=7     	Black=6      Inaccurate:     	White=5     	---        OK:         	White=9     	Black=18     Best:        	White=1     	Black=3} ({Inferior is} 70... e1=B 71. Qxg4+ Kh2 72. Qh5+ Kg3 73. Qg6+ Kh4 74. Qh6+ Kg4 75. Qg6+ Kh4 76. Qh6+ Kg3 77. Qg7+ Kf3 78. Qf8+ Ke4 79. Qe8+ Kf5 80. Qf7+ Ke5 81. Qe7+ Kf5 82. Qf7+ Ke5 83. Qe7+ Kf5 84. Qf7+ $11) 0-1

[Event "3rd Sunway Formentera-A 2024"]
[Site "Formentera"]
[Date "2024.04.16"]
[Round "7.8"]
[White "Schulman, Julia"]
[Black "Svensen, Tarjei Joten"]
[Result "1/2-1/2"]
[ECO "C02"]
[WhiteElo "1732"]
[BlackElo "2054"]
[Annotator "TA"]
[PlyCount "123"]
[EventDate "2024.04.03"]
[EventType "swiss"]
[EventCountry "ESP"]
[SourceTitle "playchess.com"]
[Source "ChessBase"]
[SourceQuality "1"]
[TimeControl "40/5400+30:1800+30"]

{[%evp 10,123,0,0,0,0,3,-3,33,26,73,0,12,-4,30,-35,-41,-41,-40,-55,-36,-53,-39,-38,-36,-84,-82,-179,-120,-117,-134,-239,-257,-302,-281,-366,-361,-339,-245,-240,-231,-251,-156,-155,-141,-154,-142,-159,-89,-159,-160,-158,-158,-146,-64,-66,-60,-102,-62,-62,-50,-54,-63,-87,-48,-87,-58,-103,-36,-43,-23,-36,-28,-35,-37,-42,-16,-20,-8,-8,-8,-18,-21,-18,-19,-291,-318,-411,-399,-549,-12,-12,-32,-1155,-1077,-872,0,0,0,0,0,0,0,0,0,0,0,0,0,0,0,0,0,0,0,0]} 1. e4 {[%emt 0:00:03]} e6 {[%emt 0:00:07]} 2. d4 {[%emt 0:00:12]} d5 {[%emt 0:00:03]} 3. e5 {[%emt 0:00:32]} c5 {[%emt 0:00:28]} 4. c3 {[%emt 0:00:35]} Nc6 {[%emt 0:00:36]} 5. Nf3 {[%emt 0:00:23]} Qb6 {[%emt 0:00:22]} 6. Na3 {[%emt 0:01:09]} Bd7 {[%emt 0:02:51]} 7. Nc2 {[%emt 0:00:46]} Rc8 {[%emt 0:08:52]} 8. a3 {[%emt 0:22:24]} a5 {[%emt 0:09:43]} 9. Be2 {[%emt 0:04:15]} Nh6 {[%emt 0:05:23]} (9... cxd4 $11 10. Ncxd4 Bc5) 10. Ne3 {[%emt 1:05:11]} (10. O-O $16) 10... a4 11. O-O {[%emt 0:00:00]} (11. Qxa4 Nxd4 12. Qd1 Nxe2 13. Qxe2 Bb5) 11... Be7 {[%emt 0:04:14]} 12. Kh1 {[%emt 0:00:00]} (12. Qxa4 Nxd4 13. Qd1 Nxe2+ 14. Qxe2 Bc6 $17) ({White should try} 12. Nc2 $11) 12... cxd4 $15 {[%emt 0:03:58]} 13. cxd4 {[%emt 0:00:00][%cal Oc1d2]} Na5 {[%emt 0:00:31]} 14. Nc2 {[%emt 0:00:00]} Nf5 {[%emt 0:04:46]} 15. g4 {[%emt 0:00:00]} Nh4 {[%emt 0:02:23]} (15... Rxc2 $5 16. Qxc2 Nxd4 17. Nxd4 Qxd4 $17) 16. Nxh4 {[%emt 0:00:00]} Bxh4 {[%emt 0:00:03]} 17. Be3 {[%emt 0:00:00]} (17. Rb1 $15) 17... Qxb2 $17 {[%emt 0:05:19]} 18. Ne1 {[%emt 0:00:00]} (18. Bd3 $17) 18... Nb3 {[%emt 0:02:13]} (18... Be7 $19 {[%cal Ob2b3]} 19. Nd3 Qc2) 19. Rb1 {[%emt 0:00:00]} Qxa3 {[%emt 0:01:31]} 20. Nf3 {[%emt 0:00:00] Wards off h6} (20. g5 $17) 20... Be7 $19 {[%emt 0:00:12]} 21. Bd3 {[%emt 0:00:00]} O-O {[%emt 0:13:07]} 22. Bc2 {[%emt 0:00:00]} Bb5 {[%emt 0:13:37]} 23. Rg1 {[%emt 0:00:00][%cal Bf1g1,Bg1g3,Bg3b3][%mdl 32]} Bc4 {[%emt 0:04:35]} 24. Nd2 {[%emt 0:00:00]} Nxd2 {[%emt 0:01:46]} 25. Bxd2 {[%emt 0:00:00][%cal Og1g3]} b5 {[%emt 0:04:47]} 26. Rg3 {[%emt 0:01:10] [#] Prevents Bd3} Bb3 $1 {[%emt 0:06:05]} 27. Bxb3 {[%emt 0:02:59]} axb3 {[%emt 0:00:02]} 28. Rgxb3 {[%emt 0:00:26] [#]} Qa4 {[%emt 0:01:17]} (28... Qa7 $142 $1 29. Rd3 Qa4) 29. Bb4 {[%emt 0:01:33]} (29. Bc3 $142) 29... Bxb4 $17 {[%emt 0:00:14]} 30. Rxb4 {[%emt 0:00:04]} Qxd1+ {[%emt 0:00:08]} 31. Rxd1 {[%emt 0:00:03][%mdl 4096] Endgame. KRR-KRR} f6 {[%emt 0:00:13]} (31... Rc2 $17 32. Kg2 f6 33. exf6 Rxf6) 32. exf6 $1 $15 {[%emt 0:02:39]} Rxf6 {[%emt 0:00:03]} 33. Rd2 {[%emt 0:00:06]} Rf4 {[%emt 0:02:45]} 34. h3 $1 {[%emt 0:01:18]} Rc4 {[%emt 0:00:06]} 35. Rxb5 {[%emt 0:00:31]} Rcxd4 {[%emt 0:00:10]} 36. Rc2 {[%emt 0:00:51]} Rc4 {[%emt 0:00:18]} 37. Ra2 {[%emt 0:00:14]} Rc7 {[%emt 0:01:36] Dodges Rb7} 38. Rb6 {[%emt 0:00:39]} Re7 {[%emt 0:01:03]} (38... Re4 $17) 39. Re2 {[%emt 0:00:31]} e5 {[%emt 0:00:22]} 40. Rb5 {[%emt 0:00:00]} Rd4 {[%emt 0:00:00]} 41. f3 {[%emt 0:06:47]} Kf7 {[%emt 0:01:14]} 42. Kg2 {[%emt 0:01:03]} Rd3 {[%emt 0:01:28]} 43. h4 {[%emt 0:01:35]} Kf6 {[%emt 0:03:29]} 44. Rb6+ {[%emt 0:05:29]} Re6 {[%emt 0:01:21]} 45. g5+ {[%emt 0:01:47]} Kf5 {[%emt 0:00:15]} 46. Rb7 {[%emt 0:00:30]} Kg6 {[%emt 0:00:52]} 47. f4 $2 {[%emt 0:08:24][%mdl 8192]} (47. h5+ $11 {and White is okay.} Kxh5 48. Rxg7) 47... e4 $19 {[%emt 0:00:47]} 48. Rf2 {[%emt 0:05:32]} Kf5 {[%emt 0:00:21] Hoping for ...e3.} 49. Rxg7 {[%emt 0:03:52]} Kg4 $2 {[%emt 0:01:36]} ({Better is} 49... e3 $19 50. Re2 Kxf4 51. Rf7+ Kg4) 50. f5 $11 {[%emt 0:00:15][%cal Bf4f5,Bf5g6,Bg6g7][%mdl 32]} Rg3+ {[%emt 0:09:10]} 51. Kf1 $2 {[%emt 0:00:37][%mdl 8192]} (51. Kh2 $15 Rh3+ 52. Kg2) 51... Ra6 $19 {[%emt 0:01:29]} 52. g6 {[%emt 0:00:25]} hxg6 $2 {[%emt 0:10:03]} (52... Kxh4 $2 {loses.} 53. Rh2+ (53. gxh7 Ra1+ 54. Ke2 Ra2+ 55. Kd1 Rd3+ 56. Kc1 Rc3+ 57. Kb1 Ra8 58. Rh2+ Rh3) 53... Rh3 54. Rxh7+ (54. gxh7 Ra1+ 55. Ke2 Rxh2+ $18) 54... Kg5 55. R7xh3 $18 (55. R2xh3 Ra1+ 56. Kf2 Ra8 $18)) (52... h5 $19 53. Re7 e3 (53... Kxh4 54. g7 $11) (53... Ra1+ $2 54. Ke2 $19) 54. Rxe3 Rxe3) 53. Rxg6+ $11 {[%emt 0:01:28] The position is equal.} Rxg6 {[%emt 0:00:02]} ({Inferior is} 53... Kxh4 54. Rh2+ (54. Rxa6 Rb3 $18) 54... Rh3 55. Rxh3+ Kxh3 56. Rxa6 e3 57. f6 d4 58. f7) 54. fxg6 {[%emt 0:00:03] White wants to mate with Rg2.} Kxh4 $19 {[%emt 0:00:37] KR-KR} 55. Rg2 {[%emt 0:00:46] White threatens Rxg3 and mate.} Rf3+ {[%emt 0:00:30]} 56. Ke2 {[%emt 0:00:30] Intending g7 and mate.} Rf8 $1 {[%emt 0:01:22]} 57. g7 {[%emt 0:00:08]} Rg8 {[%emt 0:00:08]} 58. Ke3 {[%emt 0:00:08]} Kh5 {[%emt 0:00:22]} 59. Kd4 {[%emt 0:00:47]} Kh6 {[%emt 0:00:11]} 60. Kxd5 {[%emt 0:00:21]} Rxg7 {[%emt 0:00:05]} 61. Rxg7 {[%emt 0:00:07]} Kxg7 {[%emt 0:00:04]} 62. Kxe4 {[%emt 0:00:08] Weighted Error Value: White=0.44/Black=0.38.  Loses game:     	White=2     	---        Missed win:     	---       	Black=1      Mistake:       	White=6     	Black=5      Inaccurate:     	White=5     	Black=7      OK:         	White=16    	Black=19     Best:        	White=4     	Black=3      Strong:       	White=2     	Black=1      Brilliant:      	---       	Black=1} 1/2-1/2

[Event "3rd Sunway Formentera-A 2024"]
[Site "Formentera"]
[Date "2024.04.16"]
[Round "7.9"]
[White "Botez, Alexandra"]
[Black "Shimelkov, Vasiliy"]
[Result "0-1"]
[ECO "E10"]
[WhiteElo "1970"]
[BlackElo "2112"]
[Annotator "NA RC"]
[PlyCount "70"]
[EventDate "2024.04.03"]
[EventType "swiss"]
[EventCountry "ESP"]
[SourceTitle "playchess.com"]
[Source "ChessBase"]
[SourceQuality "1"]
[TimeControl "40/5400+30:1800+30"]

1. d4 {[%emt 0:00:03]} Nf6 {[%emt 0:00:08]} 2. c4 {[%emt 0:00:07]} e6 {[%emt 0:00:06]} 3. Nf3 {[%emt 0:00:08]} c5 {[%emt 0:00:19]} 4. d5 {[%emt 0:00:14]} b5 {[%emt 0:00:25]} 5. dxe6 {[%emt 0:10:52]} fxe6 {[%emt 0:00:09]} 6. cxb5 {[%emt 0:00:17]} d5 {[%emt 0:01:15]} 7. e3 {[%emt 0:00:57]} Bd6 {[%emt 0:00:12]} 8. Nc3 {[%emt 0:01:38]} Bb7 {[%emt 0:00:15]} 9. Bd3 {[%emt 0:03:44]} O-O {[%emt 0:02:22]} 10. Qe2 {[%emt 0:03:13]} Nbd7 {[%emt 0:15:17]} 11. O-O {[%emt 0:08:18]} Ng4 {[%emt 0:05:46]} 12. h3 {[%emt 0:02:34]} Nge5 {[%emt 0:04:15]} 13. Nxe5 {[%emt 0:01:07]} Nxe5 {[%emt 0:00:07]} 14. f4 {[%emt 0:05:43]} Nxd3 {[%emt 0:02:21]} 15. Qxd3 {[%emt 0:00:04]} Qh4 {[%emt 0:03:27]} 16. Qe2 {[%emt 0:03:44]} Rf6 {[%emt 0:02:12]} 17. Qf2 {[%emt 0:10:49]} Qh6 {[%emt 0:04:25]} 18. Ne2 {[%emt 0:00:30]} Rg6 {[%emt 0:00:57]} 19. Kh2 {[%emt 0:00:11]} Rf8 {[%emt 0:05:53]} 20. Ng1 {[%emt 0:05:19]} d4 {[%emt 0:02:55]} 21. g3 {[%emt 0:03:17]} e5 {[%emt 0:04:59]} 22. Ne2 {[%emt 0:08:18]} Rf5 {[%emt 0:07:31]} 23. h4 {[%emt 0:00:16]} Rg4 {[%emt 0:01:03]} 24. exd4 {[%emt 0:09:28]} cxd4 {[%emt 0:01:40]} 25. Bd2 {[%emt 0:03:56]} d3 {[%emt 0:00:17]} 26. Nd4 {[%emt 0:05:46]} exd4 {[%emt 0:01:20]} 27. Kh3 {[%emt 0:01:14]} Qg6 {[%emt 0:06:41]} 28. Rg1 {[%emt 0:02:36]} Rh5 {[%emt 0:06:50]} 29. Rae1 {[%emt 0:02:31]} Qf5 {[%emt 0:00:33]} 30. Kh2 {[%emt 0:00:09]} g5 {[%emt 0:01:49]} 31. Ref1 {[%emt 0:03:04]} gxh4 {[%emt 0:00:20]} 32. gxh4 {[%emt 0:00:14]} Kf7 {[%emt 0:00:35]} 33. Rxg4 {[%emt 0:00:23]} Qxg4 {[%emt 0:00:08]} 34. Be1 {[%emt 0:00:36]} d2 {[%emt 0:00:33]} 35. Qg3 {[%emt 0:00:18]} Rxh4+ {[%emt 0:00:31]} 0-1

[Event "3rd Sunway Formentera-A 2024"]
[Site "Formentera"]
[Date "2024.04.16"]
[Round "7.10"]
[White "Kazarian, Anna-Maja"]
[Black "Sereinig, Eduard"]
[Result "1-0"]
[ECO "B07"]
[WhiteElo "2207"]
[BlackElo "1990"]
[Annotator "RC"]
[PlyCount "41"]
[EventDate "2024.04.03"]
[EventType "swiss"]
[EventCountry "ESP"]
[SourceTitle "playchess.com"]
[Source "ChessBase"]
[SourceQuality "1"]
[TimeControl "40/5400+30:1800+30"]

1. e4 {[%emt 0:00:03]} d6 {[%emt 0:00:16]} 2. d4 {[%emt 0:00:06]} Nf6 {[%emt 0:00:06]} 3. Nc3 {[%emt 0:00:04]} g6 {[%emt 0:00:13]} 4. Be3 {[%emt 0:00:04]} c6 {[%emt 0:00:12]} 5. a4 {[%emt 0:00:05]} Bg7 {[%emt 0:01:09]} 6. f3 {[%emt 0:00:19]} Qa5 {[%emt 0:04:50]} 7. h4 {[%emt 0:03:02]} h5 {[%emt 0:02:13]} 8. Nh3 {[%emt 0:00:53]} Bxh3 {[%emt 0:14:08]} 9. Rxh3 {[%emt 0:00:08]} Nbd7 {[%emt 0:00:03]} 10. Qd2 {[%emt 0:15:16]} O-O {[%emt 0:05:05]} 11. Be2 {[%emt 0:01:00]} Rad8 {[%emt 0:03:02]} 12. g4 {[%emt 0:07:11]} e5 {[%emt 0:12:04]} 13. O-O-O {[%emt 0:08:29]} b5 {[%emt 0:04:57]} 14. g5 {[%emt 0:12:11]} Nh7 {[%emt 0:18:27]} 15. axb5 {[%emt 0:05:54]} cxb5 {[%emt 0:03:39]} 16. Kb1 {[%emt 0:01:15]} b4 {[%emt 0:06:30]} 17. Nd5 {[%emt 0:00:30]} Rb8 {[%emt 0:00:15]} 18. Ne7+ {[%emt 0:00:30]} Kh8 {[%emt 0:00:07]} 19. Nc6 {[%emt 0:00:16]} Qa4 {[%emt 0:00:25]} 20. Nxb8 {[%emt 0:00:26]} Rxb8 {[%emt 0:00:25]} 21. Bc4 {[%emt 0:00:34]} 1-0

[Event "3rd Sunway Formentera-A 2024"]
[Site "Formentera"]
[Date "2024.04.16"]
[Round "7.11"]
[White "Akshit Kumar J"]
[Black "Botez, Andrea"]
[Result "1-0"]
[ECO "B38"]
[WhiteElo "2172"]
[BlackElo "1879"]
[Annotator "RC"]
[PlyCount "103"]
[EventDate "2024.04.03"]
[EventType "swiss"]
[EventCountry "ESP"]
[SourceTitle "playchess.com"]
[Source "ChessBase"]
[SourceQuality "1"]
[TimeControl "40/5400+30:1800+30"]

1. e4 {[%emt 0:00:29]} c5 {[%emt 0:00:03]} 2. Nf3 {[%emt 0:00:12]} g6 {[%emt 0:00:21]} 3. d4 {[%emt 0:00:08]} cxd4 {[%emt 0:00:04]} 4. Nxd4 {[%emt 0:00:06]} Nc6 {[%emt 0:00:28]} 5. c4 {[%emt 0:00:07]} Bg7 {[%emt 0:00:23]} 6. Be3 {[%emt 0:00:06]} Qb6 {[%emt 0:00:29]} 7. Nb3 {[%emt 0:05:16]} Qd8 {[%emt 0:00:09]} 8. Nd4 {[%emt 0:03:57]} Qb6 {[%emt 0:00:55]} 9. Nb3 {[%emt 0:00:05]} Qd8 {[%emt 0:00:28]} 10. Qd2 {[%emt 0:00:15]} Nf6 {[%emt 0:00:21]} 11. f3 {[%emt 0:00:28]} O-O {[%emt 0:00:35]} 12. Nc3 {[%emt 0:02:19]} d6 {[%emt 0:00:10]} 13. Be2 {[%emt 0:06:35]} Be6 {[%emt 0:00:52]} 14. Rc1 {[%emt 0:03:40]} Nd7 {[%emt 0:00:45]} 15. O-O {[%emt 0:03:00]} a5 {[%emt 0:00:21]} 16. Nb5 {[%emt 0:07:10]} a4 {[%emt 0:06:43]} 17. N3d4 {[%emt 0:00:17]} Nc5 {[%emt 0:04:56]} 18. Rfd1 {[%emt 0:06:10]} h5 {[%emt 0:02:55]} 19. Bh6 {[%emt 0:06:46]} Nxd4 {[%emt 0:15:01]} 20. Nxd4 {[%emt 0:00:10]} Bxh6 {[%emt 0:00:14]} 21. Qxh6 {[%emt 0:00:10]} Qb6 {[%emt 0:00:49]} 22. Rc2 {[%emt 0:05:23]} a3 {[%emt 0:21:28]} 23. b4 {[%emt 0:15:25]} Nb3 {[%emt 0:17:43]} 24. c5 {[%emt 0:11:04]} dxc5 {[%emt 0:15:26]} 25. Nxe6 {[%emt 0:00:25]} Qxe6 {[%emt 0:00:07]} 26. Bc4 {[%emt 0:02:16]} Qb6 {[%emt 0:00:05]} 27. axb3 {[%emt 0:02:01]} cxb4+ {[%emt 0:00:07]} 28. Kf1 {[%emt 0:01:50]} a2 {[%emt 0:02:27]} 29. Ra1 {[%emt 0:01:16]} Qd6 {[%emt 0:07:37]} 30. Raxa2 {[%emt 0:01:48]} b5 {[%emt 0:00:51]} 31. Rxa8 {[%emt 0:13:51]} Qd1+ {[%emt 0:02:00]} 32. Kf2 {[%emt 0:00:05]} Qxc2+ {[%emt 0:00:34]} 33. Kg3 {[%emt 0:00:06]} h4+ {[%emt 0:00:15]} 34. Kh3 {[%emt 0:00:29]} Rxa8 {[%emt 0:00:05]} 35. Qxg6+ {[%emt 0:00:05]} Kh8 {[%emt 0:00:03]} 36. Qh5+ {[%emt 0:00:45]} Kg7 {[%emt 0:00:23]} 37. Qxf7+ {[%emt 0:00:08]} Kh8 {[%emt 0:01:05]} 38. Qh5+ {[%emt 0:00:12]} Kg7 {[%emt 0:00:02]} 39. Qg5+ {[%emt 0:00:33]} Kh7 {[%emt 0:00:10]} 40. Qxe7+ {[%emt 0:00:00]} Kh6 {[%emt 0:00:00]} 41. Qxh4+ {[%emt 0:01:50]} Kg6 {[%emt 0:08:24]} 42. Qg3+ {[%emt 0:02:08]} Kh7 {[%emt 0:05:38]} 43. Qc7+ {[%emt 0:00:25]} Kh8 {[%emt 0:00:35]} 44. Qe5+ {[%emt 0:00:07]} Kh7 {[%emt 0:00:18]} 45. Qe7+ {[%emt 0:04:16]} Kh8 {[%emt 0:06:20]} 46. Qe5+ {[%emt 0:01:18]} Kh7 {[%emt 0:00:07]} 47. Qxb5 {[%emt 0:00:10]} Ra2 {[%emt 0:02:55]} 48. Qh5+ {[%emt 0:01:29]} Kg7 {[%emt 0:00:03]} 49. Qf7+ {[%emt 0:00:05]} Kh6 {[%emt 0:00:07]} 50. Qf8+ {[%emt 0:00:19]} Kh7 {[%emt 0:01:09]} 51. Bg8+ {[%emt 0:00:07]} Kg6 {[%emt 0:00:20]} 52. Qf7+ {[%emt 0:00:13]} 1-0